Cogmind - Beta 10.1 @@@ ROGUE MODE // 2020.10.13 @ 17:30:03 Player: CVD-b335 Result: Self-destructed Performance ------------- Evolutions (2) 1000 Regions Visited (6) 1200 Robots Destroyed (21) 105 Value Destroyed (735) 735 Prototype IDs (1) 20 Alien Tech Used (0) 0 Bonus (700) 700 TOTAL SCORE: 3760 Bonus ------- Entered Garrisons 200 Used RIF Installer 500 Cogmind --------- Core Integrity 39/550 Matter 300/300 Energy 100/100 System Corruption 0% Temperature Cool (0) Movement Core (550) Ox10 Location -8/Garrison Parts ------- > --- POWER (1) -------- (None) > --- PROPULSION (2) --- (None) > --- UTILITY (6) ------ Large Storage Unit Large Storage Unit > --- WEAPON (2) ------- (None) > --- INVENTORY (16) --- Cooled Ion Engine Nuclear Core Reinforced Deuterium Engine Light Fission Core Medium Battery (200) Medium Matter Pod (100) Large Matter Pod (150) Peak State ------------ > --- POWER ------------ Cooled Ion Engine > --- PROPULSION ------- Wheel Compact Wheel > --- UTILITY ---------- Large Storage Unit Large Storage Unit Signal Interpreter Terrain Scanner Targeting Computer Hardened Light Armor Plating > --- WEAPON ----------- Heavy Assault Rifle Gauss Rifle > --- INVENTORY -------- Backup Power I Nuclear Core Reinforced Deuterium Engine Light Fission Core Wheel Compact Wheel Medium Battery Medium Matter Pod Large Matter Pod Beam Cannon Assault Rifle Assault Rifle [Rating: 20] Favorites ----------- Power Light Ion Engine Engine Light Ion Engine Propulsion Wheel Leg Aluminum Leg Wheel Wheel Utility Large Storage Unit Device Terrain Scanner Storage Large Storage Unit Processor Signal Interpreter Protection Hardened Light Armor Plating Weapon Assault Rifle Energy Gun EM Pulse Gun Energy Cannon Beam Cannon Ballistic Gun Assault Rifle Launcher Grenade Launcher Special Weapon Mining Laser Build | -11 -10 -10 -10 -9 -8 -8 ------- Run | Scr Mat Min Exi Min Mat Gar Slots Evolved 4 | . . . . . 4 . Power . | . . . . . . . Propulsion . | . . . . . . . Utility 4 | . . . . . 4 . Weapon . | . . . . . . . Parts Attached 29 | . 10 3 . 2 8 6 Power 2 | . 1 . . . 1 . Engine 2 | . 1 . . . 1 . Core . | . . . . . . . Reactor . | . . . . . . . Propulsion 9 | . 3 1 . 1 2 2 Treads . | . . . . . . . Leg 1 | . 1 . . . . . Wheel 8 | . 2 1 . 1 2 2 Hover . | . . . . . . . Flight . | . . . . . . . Utility 6 | . 2 . . . 4 . Device 1 | . . . . . 1 . Storage 2 | . 1 . . . 1 . Processor 2 | . 1 . . . 1 . Hackware . | . . . . . . . Protection 1 | . . . . . 1 . Artifact . | . . . . . . . Weapon 12 | . 4 2 . 1 1 4 Energy Gun 2 | . 1 . . . . 1 Energy Cannon 2 | . . 1 . . . 1 Ballistic Gun 5 | . . 1 . 1 1 2 Ballistic Cannon . | . . . . . . . Launcher 1 | . 1 . . . . . Special Weapon 2 | . 2 . . . . . Impact Weapon . | . . . . . . . Slashing Weapon . | . . . . . . . Piercing Weapon . | . . . . . . . Special Melee Weapon . | . . . . . . . Unidentified Prototypes 1 | . . . . . 1 . Parts Lost 23 | . 6 . . 2 . 15 Power 3 | . 1 . . 1 . 1 Propulsion 6 | . 1 . . 1 . 4 Utility 4 | . . . . . . 4 Weapon 10 | . 4 . . . . 6 Highest Loss Streak 15 | . 5 . . 2 . 15 Average Slot Usage (%) 88 | . 78 100 100 83 89 82 Engine 10 | . 10 14 14 4 7 7 Leg 4 | . 14 . . . . . Wheel 18 | . 10 28 28 22 15 13 Device 1 | . . . . . 9 5 Storage 14 | . 14 14 14 14 18 18 Processor 13 | . 12 14 14 14 12 16 Protection 1 | . . . . . 9 6 Energy Gun 1 | . 5 . . . . . Energy Cannon 3 | . . 1 14 8 . . Ballistic Gun 11 | . 5 11 14 20 18 13 Launcher 1 | . 4 . . . . . Special Weapon 2 | . . 15 . . . . Naked Turns . | . . . . . . . Heaviest Build 53 | 13 21 24 24 24 53 53 Greatest Support 26 | 20 26 26 26 26 26 26 Greatest Overweight (x) 10 | . . . . 2 4 10 Average Overweight (x) . | . . . . . 1 2 Largest Inventory Capacity 16 | . 10 10 10 10 16 16 Average Capacity 10 | . 6 10 10 10 15 16 Most Carried 13 | . 6 8 10 10 13 13 Average Carried 6 | . 3 5 9 9 8 10 Final Capacity 16 | 6 10 10 10 10 16 16 Final Carried 13 | 6 4 8 9 10 13 7 Class Distribution -------------------- 87% | Mutant 12% | Scavenger-Mutant Dominant Class ---------------- Mutant | -10/Materials Mutant | -10/Mines Mutant | -10/Exiles Mutant | -9/Mines Mutant | -8/Materials Scavenger-Mutant | -8/Garrison Resources | -11 -10 -10 -10 -9 -8 -8 ----------- Run | Scr Mat Min Exi Min Mat Gar Matter Collected 982 | 200 205 63 131 50 151 182 Remotely . | . . . . . . . Salvage Created 908 | . 346 . . 103 238 221 Parts 48 | . 18 1 . 8 11 10 Haulers Intercepted 1 | . . . . . 1 . Recyclers Shooed 1 | . . . . 1 . . Parts Field Recycled . | . . . . . . . Retrieved Matter . | . . . . . . . Parts Self-Destructed . | . . . . . . . Prevented . | . . . . . . . Kills | -11 -10 -10 -10 -9 -8 -8 ------- Run | Scr Mat Min Exi Min Mat Gar Combat Hostiles Destroyed 16 | . 8 . . 2 2 4 Guns 12 | . 6 . . . 2 4 Cannons 2 | . . . . 2 . . AOE 2 | . 2 . . . . . Classes Destroyed 8 | . 2 1 . 1 4 . Worker 1 | . . 1 . . . . Hauler 1 | . . . . . 1 . Recycler 1 | . . . . . 1 . Mechanic 1 | . . . . . 1 . Watcher 1 | . 1 . . . . . Grunt 11 | . 8 . . . . 3 Sentry 3 | . . . . 2 . 1 Hunter 2 | . . . . . 2 . Best Kill Streak 3 | . 3 1 . 2 3 2 Combat Bots Only 2 | . 2 . . 2 1 2 Max Kills in Single Turn 1 | . 1 1 . 1 1 1 Gunslinging . | . . . . . . . Exploded 1 | . 1 . . . . . Melee . | . . . . . . . Uniques/NPCs Destroyed . | . . . . . . . Combat | -11 -10 -10 -10 -9 -8 -8 -------- Run | Scr Mat Min Exi Min Mat Gar Damage Taken 2713 | . 732 . . 186 270 1525 Core 705 | . 122 . . 72 18 493 Absorbed by Shields . | . . . . . . . Core Remaining (%) 61 | 100 . . . 22 . . Volleys Fired 88 | . 43 2 . 9 12 22 Largest 2 | . 2 2 . 2 2 2 Hottest 200 | . 60 200 . 80 51 60 Shots Fired 159 | . 74 4 . 18 24 39 Gun 141 | . 70 . . 9 24 38 Cannon 10 | . . . . 9 . 1 Launcher 4 | . 4 . . . . . Special 4 | . . 4 . . . . Kinetic 108 | . 39 . . 9 24 36 Thermal 16 | . . 4 . 9 . 3 Explosive 4 | . 4 . . . . . Electromagnetic 31 | . 31 . . . . . Robot Hit Streak 11 | . 11 2 . 6 6 8 Robot Miss Streak 4 | . 3 1 . 1 2 4 Penetration Max 1 | . . . . . 1 . Secondary Targets 2 | . 1 . . . . 1 Max Gunslinging Chain 1 | . 1 . . . . 1 Shots Hit Robots 108 | . 52 2 . 12 16 26 Core Hits 47 | . 20 1 . 5 9 12 Critical Hits 1 | . . . . . . 1 Critical Kills . | . . . . . . . Critical Parts Destroyed 1 | . . . . . . 1 Melee Attacks . | . . . . . . . Impact . | . . . . . . . Slashing . | . . . . . . . Piercing . | . . . . . . . Sneak Attacks . | . . . . . . . Combat Hostiles . | . . . . . . . Follow-up Attacks . | . . . . . . . Damage Inflicted 1787 | . 875 48 . 188 275 401 Guns 1343 | . 639 . . 63 275 366 Cannons 142 | . . . . 125 . 17 Explosions 236 | . 236 . . . . . Melee . | . . . . . . . Ramming 18 | . . . . . . 18 Kinetic 1020 | . 316 . . 63 275 366 Thermal 247 | . 57 48 . 125 . 17 Explosive 179 | . 179 . . . . . Electromagnetic 323 | . 323 . . . . . Impact . | . . . . . . . Slashing . | . . . . . . . Piercing . | . . . . . . . Highest Corruption . | . . . . . . . Average Corruption . | . . . . . . . Corruption Purged . | . . . . . . . Overload Shots . | . . . . . . . Overflow Damage 13 | . 13 . . . . . Projectiles . | . . . . . . . Explosions 13 | . 13 . . . . . Melee . | . . . . . . . Knockbacks 1 | . . . . . . 1 Impact 1 | . . . . . . 1 Kinetic . | . . . . . . . Secondary . | . . . . . . . Self-Inflicted Damage 106 | . 97 . . . . 9 Shots 4 | . 4 . . . . . Rammed 2 | . . . . . . 2 Targets Rammed 2 | . . . . . . 2 Kicked . | . . . . . . . Crushed . | . . . . . . . Highest Temperature 112 | . 76 112 . 110 4 42 Average Temperature 37 | . 27 57 . 71 4 10 Received Heat Transfer 1119 | . 354 . . 63 63 639 Siege Activations . | . . . . . . . Robots Corrupted . | . . . . . . . Combat Hostiles . | . . . . . . . Parts Fried 1 | . 1 . . . . . Impact Corruptions . | . . . . . . . Robots Melted . | . . . . . . . Combat Hostiles . | . . . . . . . Parts Melted 1 | . . . . 1 . . Heat Transferred 496 | . 100 100 . 259 . 37 Parts Sabotaged . | . . . . . . . Parts Stolen . | . . . . . . . Parts Stripped . | . . . . . . . Power Chain Reactions 1 | . 1 . . . . . Missiles Intercepted . | . . . . . . . Alert | -11 -10 -10 -10 -9 -8 -8 ------- Run | Scr Mat Min Exi Min Mat Gar Peak Influence 162 | . 162 12 . 35 110 106 Initial 71 | . . 7 . . 13 71 Average 48 | . 64 11 . 23 47 72 Maximum Alert Level . | . . . . . . . Low Security (%) 100 | . 100 100 . 100 100 100 Level 1 . | . . . . . . . Level 2 . | . . . . . . . Level 3 . | . . . . . . . Level 4 . | . . . . . . . Level 5 . | . . . . . . . High Security . | . . . . . . . Max Security . | . . . . . . . Squads Dispatched 3 | . 2 . . . 1 . Investigation 2 | . 1 . . . 1 . Extermination . | . . . . . . . Reinforcement 1 | . 1 . . . . . Assault . | . . . . . . . Garrison . | . . . . . . . Intercept . | . . . . . . . Construction Impeded . | . . . . . . . Haulers Reinforced . | . . . . . . . Stealth | -11 -10 -10 -10 -9 -8 -8 --------- Run | Scr Mat Min Exi Min Mat Gar Distress Signals 1 | . 1 . . . . . Communications Jammed . | . . . . . . . Distress Signals . | . . . . . . . Times Spotted 36 | . 21 . . 2 6 7 Peak Tracking Total 10 | . 4 . . 2 4 10 Tactical Retreats 6 | . 5 . . . . 1 Traps | -11 -10 -10 -10 -9 -8 -8 ------- Run | Scr Mat Min Exi Min Mat Gar Traps Triggered 2 | . . . . . . 2 Indirectly . | . . . . . . . Trap Hack Attempts . | . . . . . . . Triggered . | . . . . . . . Disarmed . | . . . . . . . Reprogrammed . | . . . . . . . Reused . | . . . . . . . Traps Extracted . | . . . . . . . Installed . | . . . . . . . Triggered 1 | . 1 . . . . . Machines | -11 -10 -10 -10 -9 -8 -8 ---------- Run | Scr Mat Min Exi Min Mat Gar Machines Disabled 1 | . 1 . . . . . Max in Single Turn 1 | . 1 . . . . . Machines Sabotaged . | . . . . . . . Garrisons Compromised . | . . . . . . . Overloaded Fab Kills . | . . . . . . . Fab Network Shutdowns . | . . . . . . . Hacking | -11 -10 -10 -10 -9 -8 -8 --------- Run | Scr Mat Min Exi Min Mat Gar Machines Accessed 5 | . 1 . . . 4 . Terminals 2 | . . . . . 2 . Fabricators . | . . . . . . . Repair Stations 1 | . . . . . 1 . Recycling Units 1 | . 1 . . . . . Scanalyzers . | . . . . . . . Garrison Access 1 | . . . . . 1 . Total Hacks 14 | . 2 . . . 12 . Successful 8 | . . . . . 8 . Failed 6 | . 2 . . . 4 . Catastrophic 1 | . 1 . . . . . Database Lockouts . | . . . . . . . Manual 5 | . . . . . 5 . Terminals 8 | . . . . . 8 . Fabricators . | . . . . . . . Repair Stations 3 | . . . . . 3 . Recycling Units 2 | . 2 . . . . . Scanalyzers . | . . . . . . . Garrison Access 1 | . . . . . 1 . Terminal Hacks 1 | . . . . . 1 . Zone Layout 1 | . . . . . 1 . Fabricator Hacks . | . . . . . . . Repair Station Hacks 3 | . . . . . 3 . Scan Component 1 | . . . . . 1 . Repair 1 | . . . . . 1 . Refit 1 | . . . . . 1 . Recycling Unit Hacks . | . . . . . . . Scanalyzer . | . . . . . . . Garrison Access Hacks 1 | . . . . . 1 . Unlock Access 1 | . . . . . 1 . Unauthorized Hacks 3 | . . . . . 3 . Terminals 3 | . . . . . 3 . Track 1 | . . . . . 1 . Botnet 2 | . . . . . 2 . Fabricators . | . . . . . . . Repair Stations . | . . . . . . . Recycling Units . | . . . . . . . Scanalyzers . | . . . . . . . Garrison Access . | . . . . . . . Data Cores Recovered . | . . . . . . . Used . | . . . . . . . Hacking Detections 3 | . 1 . . . 2 . Full Trace Events 2 | . 1 . . . 1 . Feedback Events . | . . . . . . . Feedback Blocked . | . . . . . . . Robot Schematics Acquired . | . . . . . . . Robots Built . | . . . . . . . Matter . | . . . . . . . Time . | . . . . . . . Total Robot Build Rating . | . . . . . . . Part Schematics Acquired . | . . . . . . . Parts Built . | . . . . . . . Matter . | . . . . . . . Time . | . . . . . . . Total Part Build Rating . | . . . . . . . Parts Repaired 1 | . . . . . 1 . Time 26 | . . . . . 26 . Parts Recycled . | . . . . . . . Recycled Matter . | . . . . . . . Retrieved Matter . | . . . . . . . Retrieved Components . | . . . . . . . Parts Scanalyzed . | . . . . . . . Part Schematics Acquired . | . . . . . . . Parts Damaged . | . . . . . . . Bothacking | -11 -10 -10 -10 -9 -8 -8 ------------ Run | Scr Mat Min Exi Min Mat Gar Used RIF Installer 1 | . . . . . . 1 Robots Hacked . | . . . . . . . Non-combat . | . . . . . . . Combat . | . . . . . . . Robot Hacks Applied . | . . . . . . . Relay Couplers Released . | . . . . . . . Robots Rewired . | . . . . . . . Allies Hacked . | . . . . . . . Hacks Repelled . | . . . . . . . Allies | -11 -10 -10 -10 -9 -8 -8 -------- Run | Scr Mat Min Exi Min Mat Gar Total Allies . | . . . . . . . Largest Group . | . . . . . . . Highest-Rated Group . | . . . . . . . Highest-Rated Ally . | . . . . . . . Total Orders . | . . . . . . . Ally Attacks . | . . . . . . . Total Damage . | . . . . . . . Kills . | . . . . . . . Allies Corrupted . | . . . . . . . Allies Melted . | . . . . . . . Intel | -11 -10 -10 -10 -9 -8 -8 ------- Run | Scr Mat Min Exi Min Mat Gar Robot Analysis Total . | . . . . . . . Derelict Logs Recovered 1 | . . 1 . . . . Drone Launches . | . . . . . . . Drone Recoveries . | . . . . . . . Exploration | -11 -10 -10 -10 -9 -8 -8 ------------- Run | Scr Mat Min Exi Min Mat Gar Turns Passed 1800 | . 607 346 361 67 212 207 Spaces Moved 1411 | 1 435 314 392 40 135 94 Core 3 | . . . . . . 3 Treads . | . . . . . . . Legs 204 | 1 203 . . . . . Wheels 1204 | . 232 314 392 40 135 91 Hover . | . . . . . . . Flight . | . . . . . . . Fastest Speed 90 | 120 90 90 90 90 90 100 Average Speed 97 | 120 104 90 90 91 104 122 Slowest Speed 550 | 120 120 90 90 100 120 550 Overloaded Moves . | . . . . . . . Propulsion Burnouts . | . . . . . . . Robots Hopped . | . . . . . . . Cave-ins Triggered . | . . . . . . . Exploration Rate (%) 34 | 2 50 61 86 13 9 19 Regions Visited 6 Branch Regions 3 Pre-discovered Areas 1 | . . 1 . . . . Known Exits Taken 5 | . 1 1 1 1 1 . Unknown Exits Taken 1 | 1 . . . . . . Scrap Searched 2 | . . 2 . . . . Spaces Dug . | . . . . . . . Terrain Destroyed 14 | . 13 . . . 1 . Melee . | . . . . . . . Projectile 1 | . . . . . 1 . AOE 13 | . 13 . . . . . Terrain Rammed . | . . . . . . . Walls Destroyed . | . . . . . . . Machines Disabled . | . . . . . . . Actions | -11 -10 -10 -10 -9 -8 -8 --------- Run | Scr Mat Min Exi Min Mat Gar Total 1654 | . 515 364 402 52 180 141 Wait 82 | . 19 43 . . 20 . Move 1405 | . 434 313 391 39 134 94 Hop . | . . . . . . . Pick Up 16 | . 4 1 6 1 4 . Fast Attach 10 | . 3 2 . 1 3 1 Attach 16 | . 6 . . 1 4 5 Detach 7 | . 2 2 . 1 2 . Swap 3 | . 1 1 . . 1 . Drop 9 | . 3 . 5 . . 1 Fire 88 | . 43 2 . 9 12 22 Melee . | . . . . . . . Ram 2 | . . . . . . 2 Kick . | . . . . . . . Crush . | . . . . . . . Escape Stasis 16 | . . . . . . 16 Rewire . | . . . . . . . Trap . | . . . . . . . Miscellaneous . | . . . . . . . Route ------- -11/Scrapyard -10/Materials (discovered 3 exits: *Mat / *Min x2) -10/Mines (discovered 2 exits: *Mat / *Exi) -10/Exiles -9/Mines -8/Materials -8/Garrison History --------- Turn | Location | Event 1 | -11/Scrapyard | Discovered new exit (range 0) 1 | -11/Scrapyard | Entered Materials 41 | -10/Materials | Discovered new exit (range 14) 247 | -10/Materials | Discovered new exit (range 10) 257 | -10/Materials | Identified exit to Materials 271 | -10/Materials | Lost 5 parts (1p1n3w) 301 | -10/Materials | Build established: Mutant 331 | -10/Materials | Identified exit to Mines 433 | -10/Materials | Discovered exit to Mines (range 8) 608 | -10/Materials | Entered Mines 643 | -10/Mines | Learned location of Storage (-7) 710 | -10/Mines | Discovered exit to Materials (range 9) 905 | -10/Mines | Deemed a non-threat by the Exiles lab entrance 950 | -10/Mines | Discovered new exit (range 5) 953 | -10/Mines | Identified exit to Exiles 954 | -10/Mines | Entered Exiles 954 | -10/Exiles | Found Exiles lab abandoned 1305 | -10/Exiles | Discovered new exit (range 14) 1314 | -10/Exiles | Identified exit to Mines 1315 | -10/Exiles | Entered Mines 1332 | -9/Mines | Core integrity fell below 50% 1374 | -9/Mines | Discovered new exit (range 9) 1381 | -9/Mines | Identified exit to Materials 1382 | -9/Mines | Entered Materials 1382 | -8/Materials | Evolved 4 slots: Utility x4 1449 | -8/Materials | Repaired Wheel 1593 | -8/Materials | Identified exit to Garrison 1594 | -8/Materials | Entered Garrison 1600 | -8/Garrison | Installed Relay Interface Framework 1678 | -8/Garrison | Triggered checkpoint 1776 | -8/Garrison | Core integrity fell below 50% 1798 | -8/Garrison | Core integrity fell below 20% 1801 | -8/Garrison | Self-destructed Last Messages --------------- 01734_ Beam Cannon destroyed. 01755_ G-50 Soldier destroyed. 01758_ G-47 Trooper destroyed. 01758_ Assault Rifle destroyed. 01758_ Hrd. Light Armor Plating destroyed. 01762_ Assault Rifle destroyed. 01769_ Cld. Ion Engine destroyed. 01770_ Acquired 40 matter. 01771_ Acquired 62 matter. 01772_ Wheel destroyed. 01772_ Slammed into G-47 Trooper. 01772_ G-47 Trooper knocked back. 01773_ Acquired 60 matter. 01773_ Com. Wheel destroyed. 01773_ Slammed into G-47 Trooper. 01780_ Signal Interpreter destroyed. 01785_ Targeting Computer destroyed. 01790_ Acquired Beam Rifle. 01794_ Beam Rifle destroyed. 01795_ Acquired 20 matter. Map ----- +----------------------------------------------------+ | ?????????????????????????????????????????????????? | | ?????????????????????????????????????????????????? | | ?????????????????????????????????????????????????? | | ?????????????????????#####???????????????????????? | | ????????????????????? ???????????????????????? | | ?????????????????? ?? ???????????????????????? | | ??????????? ?????? ?? ???????????????????????? | | ??????????? ?#??? ?# #???????????????????????? | | ??????????# ## ?? ## #???????????????????????? | | ??????????" ??? "???????????????????????? | | ??????????? ^ ?? "???????????????????????? | | ???????????? ?? "???????????????????????? | | ?????????????? ^ ?? "??#????????????????????? | | ??????????# ???# ?# #???????#??????????#????? | | ????????### ## ## #?????????#???????#?????? | | ??????? #??#???#??????#?????????? | | ??????? #?? ????????????????????? | | ??????????# #?# #????????????#??????? | | ??????????????## ## #?# #??#????#??????????#? | | ???????????????#????## #?# ?????????????#?????? | | ?????????????????????# #?# #????????#?????????#? | | ?????????????????????# #?# ##??##??#??????#????? | | ?????????????????????# #?# #???????????????????? | | ?????????????????????# #?# #??#?????????????#??? | | ?????????????????????# !###+##################### | | ?????????????????#???# !@!g! | | ?????????????????????# * ^Y** | | ?????????????????????# ^g= | | ?????????????#???????##################### ###### | | ???????????????#????????????????????##???# #????? | | ?????????????????????????????????????????# #????? | | ????????????????????????#?????????????#??# ##???? | | ???????????????????????????????????????? #????? | | ????????????????????????????????? ???? #????# | | ????????????????????????????????????#"""#####????? | | ???????????????????????#???????????????????????#?? | | ?????????????????????#?????????????#?????????????? | | ?????????????????????????????????????#???????????? | | ???????????????????????#?#???????????????????????? | | ?????????????????????????????????????????????????? | | ?????????????????????????????????????????????????? | | ?????????????????????????????????????????????????? | | ?????????????????????????????????????????????????? | | ?????????????????????????????????????????????????? | | ?????????????????????????????????????????????????? | | ?????????????????????????????????????????????????? | | ?????????????????????????????????????????????????? | | ?????????????????????????????????????????????????? | | ?????????????????????????????????????????????????? | | ?????????????????????????????????????????????????? | +----------------------------------------------------+ Best States ------------- Heat Dissipation 31 Energy Generation 14 Energy Capacity 280 Matter Stores 300 Matter Capacity 300 Sight Range 16 Terrain Scan Range 14 Terrain Scan Density 10 Armor Coverage 150 Evasion (%) 42 Targeting Accuracy 5 Item Schematics ----------------- None Robot Schematics ------------------ None Fabricated ------------ Nothing Alien Tech Used ----------------- None Achievements -------------- None Challenges ------------ None Game ------ Seed RefineryThrusterRouter Manual? 0 Play Time 00:14:56 Cumulative 44.4 hours Start 2020.10.13 @ 17:17:15 End 2020.10.13 @ 17:30:03 Sessions 1 Manual Loads 0 Difficulty Rogue Special Mode None Game No. 51 Rogue 51 Adventurer 0 Explorer 0 Win Type - Total 2 Types 2/0/0/0/0/0/0/0/0 Lore% 30 Gallery% 50 Achievement% 35 Wizard Run 0 Options --------- ASCII 0 Keyboard 1 Movement Numpad Keybinds 0 Fullscreen 2 Font 18/SmallcapsGlow Map View 76x50 Tactical HUD 1 Map Filters NONE Filters NONE Steam 1 RUN: 23a31c2a-e9dc-451d-be10-ee719bcb5b83